fUST/lending_fUST_20250804
["ID","MTS","AMOUNT","RATE_DAILY","PERIOD"]
[377276998,1754315444648,-461.90289695,0.00032876,2]
[377276999,1754315444658,-460.0,0.00032876,2]
[377277000,1754315444668,-460.0,0.00032876,2]
[377277001,1754315444677,-460.0,0.00032876,2]
[377277002,1754315444686,-460.0,0.00032876,2]
[377277003,1754315444695,-484.9,0.00032876,2]
[377277004,1754315444705,-460.0,0.00032876,2]
[377277005,1754315444714,-473.08966949,0.00032876,2]
[377277006,1754315444723,-460.0,0.00032876,2]
[377277007,1754315444734,-3572.69,0.00032876,2]
[377277008,1754315444745,-460.0,0.00032876,2]
[377277009,1754315444754,-482.75,0.00032876,2]
[377277010,1754315444764,-460.0,0.00032876,2]
[377277011,1754315444774,-460.0,0.00032876,2]
[377277012,1754315444783,-460.0,0.00032876,2]
[377277013,1754315444791,-460.0,0.00032876,2]
[377277014,1754315444800,-151.624185,0.00032876,7]
[377277015,1754315444810,-460.0,0.00032876,2]
[377277016,1754315444819,-460.0,0.00032876,2]
[377277017,1754315444829,-1707.86,0.00032876,2]
[377277018,1754315444839,-460.0,0.00032876,2]
[377277019,1754315444848,-460.0,0.00032876,2]
[377277020,1754315444858,-460.0,0.00032876,2]
[377277021,1754315444868,-543.28,0.00032876,2]
[377277022,1754315444877,-460.0,0.00032876,2]
[377277023,1754315444887,-461.45571109,0.00032876,2]
[377277024,1754315444896,-460.0,0.00032876,2]
[377277025,1754315444905,-460.0,0.00032876,2]
[377277026,1754315444915,-460.0,0.00032876,2]
[377277027,1754315444924,-460.0,0.00032876,2]
[377277028,1754315444933,-460.0,0.00032876,2]
[377277029,1754315444943,-460.0,0.00032876,2]
[377277030,1754315444952,-460.0,0.00032876,2]
[377277031,1754315444962,-460.0,0.00032876,2]
[377277032,1754315444971,-460.0,0.00032876,2]
[377277033,1754315444981,-463.79538458,0.00032876,2]
[377277034,1754315444994,-460.0,0.00032876,2]
[377277035,1754315445004,-460.0,0.00032876,2]
[377277036,1754315445013,-453.4621212,0.00032876,2]
[377277037,1754315445024,-460.0,0.00032876,2]
[377277038,1754315445034,-460.0,0.00032876,2]
[377277039,1754315445043,-182.79650212,0.00032876,2]
[377277040,1754315445053,-460.0,0.00032876,2]
[377277041,1754315445062,-541.35,0.00032876,2]
[377277042,1754315445072,-460.0,0.00032876,2]
[377277043,1754315445082,-460.0,0.00032876,2]
[377277044,1754315445091,-508.2,0.00032876,2]
[377277045,1754315445101,-503.15671551,0.00032876,2]
[377277046,1754315445110,-171.9286035,0.00032876,2]
[377277047,1754315445120,-460.0,0.00032876,2]
[377277048,1754315445130,-460.0,0.00032876,2]
[377277049,1754315445139,-460.0,0.00032876,2]
[377277050,1754315445148,-559.11,0.00032876,2]
[377277051,1754315445158,-6028.24,0.00032876,2]
[377277052,1754315445167,-460.0,0.00032876,2]
[377277053,1754315445176,-500.0,0.00032876,2]
[377277054,1754315445186,-460.0,0.00032876,2]
[377277055,1754315445196,-460.0,0.00032876,2]
[377277056,1754315445205,-502.32,0.00032876,2]
[377277057,1754315445215,-194.8761449,0.00032876,2]
[377277058,1754315445224,-460.0,0.00032876,2]
[377277059,1754315445343,-460.0,0.00032876,2]
[377277060,1754315445353,-893.61,0.00032876,2]
[377277061,1754315445363,-460.0,0.00032876,2]
[377277062,1754315445372,-460.0,0.00032876,2]
[377277063,1754315445382,-460.0,0.00032876,2]
[377277064,1754315445391,-2869.3,0.00032876,2]
[377277065,1754315445400,-460.0,0.00032876,2]
[377277066,1754315445410,-460.0,0.00032876,2]
[377277067,1754315445419,-460.0,0.00032876,2]
[377277068,1754315445429,-466.02328624,0.00032876,2]
[377277069,1754315445439,-460.0,0.00032876,2]
[377277070,1754315445448,-784.42,0.00032876,2]
[377277071,1754315445458,-460.0,0.00032876,2]
[377277072,1754315445468,-169.31504484,0.00032876,2]
[377277081,1754315446173,10043.97843283,0.00027,2]
[377277084,1754315446228,-500.0,0.00030636,2]
[377277085,1754315446240,-500.0,0.00030636,2]
[377277086,1754315446250,-500.0,0.00030636,2]
[377277088,1754315446259,-290.68495516,0.00032876,2]
[377277089,1754315446269,-460.0,0.00032876,2]
[377277090,1754315446278,-460.0,0.00032876,2]
[377277091,1754315446287,-460.0,0.00032876,2]
[377277092,1754315446297,-460.0,0.00032876,2]
[377277093,1754315446306,-465.10921193,0.00032876,2]
[377277095,1754315446316,-460.0,0.00032876,2]
[377277096,1754315446328,-460.0,0.00032876,2]
[377277098,1754315446337,-990.37,0.00032876,2]
[377277100,1754315446346,-460.0,0.00032876,2]
[377277101,1754315446355,-460.0,0.00032876,2]
[377277103,1754315446365,-8465.52,0.00032876,2]
[377277104,1754315446374,-9506.15,0.00032876,2]
[377277105,1754315446383,-743.71,0.00032876,2]
[377277106,1754315446394,-1105.4,0.00032876,2]
[377277107,1754315446403,-460.0,0.00032876,2]
[377277108,1754315446412,-460.0,0.00032876,2]
[377277109,1754315446425,-238.30607938,0.00032876,2]
[377277110,1754315446434,-460.0,0.00032876,2]
[377277111,1754315446443,-460.0,0.00032876,2]
[377277112,1754315446453,-853.04,0.00032876,2]
[377277113,1754315446462,-460.0,0.00032876,2]
[377277114,1754315446472,-460.0,0.00032876,2]
[377277115,1754315446481,-460.0,0.00032876,2]
[377277116,1754315446498,-460.0,0.00032876,2]
[377277117,1754315446508,-1269.89,0.00032876,2]
[377277118,1754315446517,-3827.98,0.00032876,2]
[377277119,1754315446527,-678.07,0.00032876,2]
[377277120,1754315446538,-460.0,0.00032876,2]
[377277121,1754315446548,-460.0,0.00032876,2]
[377277122,1754315446557,-481.59,0.00032876,2]
[377277123,1754315446566,-586.63471803,0.00032876,2]
[377277124,1754315446577,-460.0,0.00032876,2]
[377277125,1754315446586,-460.0,0.00032876,2]
[377277126,1754315446597,-562.84,0.00032876,2]
[377277127,1754315446606,-151.0,0.00032876,7]
[377277128,1754315446616,-1018.14,0.00032876,2]
[377277129,1754315446625,-460.0,0.00032876,2]
[377277130,1754315446634,-565.62,0.00032876,2]
[377277131,1754315446643,-460.0,0.00032876,2]
[377277132,1754315446652,-460.0,0.00032876,2]
[377277133,1754315446662,-460.0,0.00032876,2]
[377277134,1754315446671,-460.0,0.00032876,2]
[377277135,1754315446680,-460.0,0.00032876,2]
[377277136,1754315446690,-460.0,0.00032876,2]
[377277137,1754315446699,-460.0,0.00032876,2]
[377277138,1754315446708,-460.0,0.00032876,2]
[377277139,1754315446718,-583.09,0.00032876,2]
[377277140,1754315446727,-460.0,0.00032876,2]
[377277141,1754315446739,-460.0,0.00032876,2]
[377277142,1754315446748,-460.0,0.00032876,2]
[377277143,1754315446757,-625.53,0.00032876,2]
[377277144,1754315446766,-460.0,0.00032876,2]
[377277145,1754315446775,-460.0,0.00032876,2]
[377277146,1754315446785,-783.07,0.00032876,2]
[377277147,1754315446795,-460.0,0.00032876,2]
[377277148,1754315446804,-962.53,0.00032876,2]
[377277149,1754315446814,-460.0,0.00032876,2]
[377277150,1754315446824,-503.65660423,0.00032876,2]
[377277151,1754315446834,-461.69525378,0.00032876,2]
[377277152,1754315446843,-460.0,0.00032876,2]
[377277153,1754315446853,-619.33,0.00032876,2]
[377277154,1754315446863,-460.0,0.00032876,2]
[377277155,1754315446874,-460.0,0.00032876,2]
[377277156,1754315446885,-460.0,0.00032876,2]
[377277157,1754315446895,-460.0,0.00032876,2]
[377277158,1754315446905,-460.0,0.00032876,2]
[377277159,1754315446915,-460.0,0.00032876,2]
[377277160,1754315446925,-641.75,0.00032876,2]
[377277161,1754315446935,-460.0,0.00032876,2]
[377277162,1754315446945,-460.0,0.00032876,2]
[377277163,1754315446955,-460.0,0.00032876,2]
[377277164,1754315446965,-460.0,0.00032876,2]
[377277165,1754315446974,-460.0,0.00032876,2]
[377277166,1754315446984,-864.24,0.00032876,2]
[377277167,1754315446999,-460.0,0.00032876,2]
[377277168,1754315447008,-500.0,0.00032876,2]
[377277169,1754315447017,-460.0,0.00032876,2]
[377277170,1754315447027,-1322.62,0.00032876,2]
[377277171,1754315447038,-460.0,0.00032876,2]
[377277172,1754315447048,-460.0,0.00032876,2]
[377277173,1754315447057,-460.0,0.00032876,2]
[377277174,1754315447067,-2596.31,0.00032876,2]
[377277175,1754315447077,-460.0,0.00032876,2]
[377277176,1754315447086,-460.0,0.00032876,2]
[377277177,1754315447095,-460.0,0.00032876,2]
[377277178,1754315447105,-460.0,0.00032876,2]
[377277179,1754315447114,-460.0,0.00032876,2]
[377277180,1754315447123,-460.0,0.00032876,2]
[377277181,1754315447132,-1197.9,0.00032876,2]
[377277182,1754315447141,-460.0,0.00032876,2]
[377277183,1754315447150,-460.0,0.00032876,2]
[377277184,1754315447159,-460.0,0.00032876,2]
[377277185,1754315447168,-475.49,0.00032876,2]
[377277186,1754315447177,-460.0,0.00032876,2]
[377277187,1754315447187,-460.0,0.00032876,2]
[377277188,1754315447196,-460.0,0.00032876,2]
[377277189,1754315447205,-460.0,0.00032876,2]
[377277190,1754315447214,-460.0,0.00032876,2]
[377277191,1754315447224,-460.0,0.00032876,2]
[377277192,1754315447240,-460.0,0.00032876,2]
[377277193,1754315447249,-3688.52,0.00032876,2]
[377277194,1754315447258,-460.0,0.00032876,2]
[377277195,1754315447268,-460.0,0.00032876,2]
[377277196,1754315447277,-850.97,0.00032876,2]
[377277197,1754315447287,-460.0,0.00032876,2]
[377277198,1754315447296,-464.32142642,0.00032876,2]
[377277199,1754315447306,-2416.95,0.00032876,2]
[377277200,1754315447315,-460.0,0.00032876,2]
[377277201,1754315447324,-1123.74,0.00032876,2]
[377277202,1754315447333,-460.0,0.00032876,2]
[377277203,1754315447342,-6385.23175106,0.00032876,2]
[377277204,1754315447355,-358.84926871,0.00032876,2]
[377277205,1754315447824,-500.0,0.00030636,2]
[377277206,1754315447834,-151.0,0.00031143,2]
[377277207,1754315447844,-151.0,0.00031143,2]
[377277208,1754315447853,-151.0,0.00031143,2]
[377277209,1754315447863,-151.0,0.00031143,2]
[377277210,1754315447872,-1633.70898023,0.00032876,2]
[377277211,1754315447882,-460.0,0.00032876,2]
[377277212,1754315447891,-460.0,0.00032876,2]
[377277213,1754315447901,-460.0,0.00032876,2]
[377277214,1754315447910,-502.08615837,0.00032876,2]
[377277215,1754315447919,-460.0,0.00032876,2]
[377277216,1754315447929,-1334.76,0.00032876,2]
[377277217,1754315447939,-516.98428892,0.00032876,2]
[377277218,1754315447948,-505.13,0.00032876,2]
[377277219,1754315447957,-42.93049729,0.00032876,2]
[377277220,1754315462880,2159.0,0.0003001,2]
[377277222,1754315552719,2872.72212108,0.0003001,2]
[377277223,1754315613763,3568.8872182,0.00029635,2]
[377277224,1754315627659,-400.0,0.00030634,2]
[377277225,1754315627686,-160.0,0.00030635,2]
[377277226,1754315627710,-500.0,0.00030635,2]
[377277227,1754315627732,-475.52053617,0.00030635,2]
[377277228,1754315627758,-500.0,0.00030635,2]
[377277229,1754315627784,-500.0,0.00030635,2]
[377277230,1754315627808,-500.0,0.00030635,2]
[377277231,1754315627830,-500.0,0.00030635,2]
[377277232,1754315627853,-500.0,0.00030635,2]
[377277233,1754315627877,-500.0,0.00030635,2]
[377277234,1754315627903,-500.0,0.00030635,2]
[377277235,1754315627926,-375.30057698,0.00030635,2]
[377277236,1754315627948,-336.68623529,0.00030635,2]
[377277237,1754315627972,-500.0,0.00030635,2]
[377277238,1754315627994,-500.0,0.00030635,2]
[377277239,1754315628015,-500.0,0.00030635,2]
[377277240,1754315628039,-500.0,0.00030635,2]
[377277241,1754315628062,-500.0,0.00030635,2]
[377277242,1754315628084,-500.0,0.00030635,2]
[377277243,1754315628106,-448.01608907,0.00030635,2]
[377277244,1754315628132,-500.0,0.00030635,2]
[377277245,1754315628159,-500.0,0.00030635,2]
[377277246,1754315628185,-500.0,0.00030635,2]
[377277247,1754315628209,-500.0,0.00030635,2]
[377277248,1754315628233,-500.0,0.00030635,2]
[377277249,1754315628257,-500.0,0.00030635,2]
[377277250,1754315628283,-500.0,0.00030635,2]
[377277251,1754315628306,-500.0,0.00030635,2]
[377277252,1754315628332,-500.0,0.00030635,2]
[377277253,1754315628355,-500.0,0.00030635,2]
[377277254,1754315628377,-500.0,0.00030635,2]
[377277255,1754315628410,-500.0,0.00030635,2]
[377277256,1754315628434,-449.692748,0.00030635,2]
[377277257,1754315628457,-500.0,0.00030635,2]
[377277258,1754315628482,-500.0,0.00030635,2]
[377277259,1754315628506,-500.0,0.00030635,2]
[377277260,1754315628528,-461.92037848,0.00030635,2]
[377277261,1754315628551,-500.0,0.00030635,2]
[377277262,1754315628576,-500.0,0.00030635,2]
[377277263,1754315628599,-500.0,0.00030635,2]
[377277264,1754315628623,-500.0,0.00030635,2]
[377277265,1754315628650,-500.0,0.00030635,2]
[377277266,1754315628674,-500.0,0.00030635,2]
[377277267,1754315628697,-500.0,0.00030635,2]
[377277268,1754315628722,-500.0,0.00030635,2]
[377277269,1754315628747,-500.0,0.00030635,2]
[377277270,1754315628774,-500.0,0.00030635,2]
[377277271,1754315628797,-500.0,0.00030635,2]
[377277272,1754315628822,-500.0,0.00030635,2]
[377277273,1754315628844,-500.0,0.00030635,2]
[377277274,1754315628870,-500.0,0.00030635,2]
[377277275,1754315628892,-500.0,0.00030635,2]
[377277276,1754315628917,-500.0,0.00030635,2]
[377277277,1754315628942,-500.0,0.00030635,2]
[377277278,1754315628966,-500.0,0.00030635,2]
[377277279,1754315628992,-500.0,0.00030635,2]
[377277280,1754315629018,-500.0,0.00030635,2]
[377277281,1754315629046,-500.0,0.00030635,2]
[377277282,1754315629072,-500.0,0.00030635,2]
[377277283,1754315629097,-500.0,0.00030635,2]
[377277284,1754315629122,-500.0,0.00030635,2]
[377277285,1754315629149,-500.0,0.00030635,2]
[377277286,1754315629178,-500.0,0.00030635,2]
[377277287,1754315629206,-500.0,0.00030635,2]
[377277288,1754315629230,-500.0,0.00030635,2]
[377277289,1754315629255,-500.0,0.00030635,2]
[377277290,1754315629280,-500.0,0.00030635,2]
[377277291,1754315629304,-500.0,0.00030635,2]
[377277292,1754315629328,-500.0,0.00030635,2]
[377277293,1754315629352,-500.0,0.00030635,2]
[377277294,1754315629376,-500.0,0.00030635,2]
[377277295,1754315629400,-500.0,0.00030635,2]
[377277296,1754315629424,-500.0,0.00030635,2]
[377277297,1754315629447,-500.0,0.00030635,2]
[377277298,1754315629470,-500.0,0.00030635,2]
[377277299,1754315629493,-500.0,0.00030635,2]
[377277300,1754315629517,-500.0,0.00030635,2]
[377277301,1754315629541,-500.0,0.00030635,2]
[377277302,1754315629564,-500.0,0.00030635,2]
[377277303,1754315629588,-500.0,0.00030635,2]
[377277304,1754315629612,-500.0,0.00030635,2]
[377277305,1754315629636,-624.6411031,0.00030635,2]
[377277306,1754315629661,-500.0,0.00030635,2]
[377277307,1754315629688,-500.0,0.00030635,2]
[377277308,1754315629713,-500.0,0.00030635,2]
[377277309,1754315629737,-500.0,0.00030635,2]
[377277310,1754315629762,-500.0,0.00030635,2]
[377277311,1754315629939,-500.0,0.00030635,2]
[377277312,1754315629960,-1200.0,0.00030635,2]
[377277313,1754315629982,-9091.54348746,0.00030636,2]
[377277314,1754315630003,-500.0,0.00030636,2]
[377277315,1754315630025,-207.67884545,0.00030671,2]
[377277316,1754315631995,5564.41,0.00032876,120]
[377277317,1754315638140,194.0,0.00025205,7]
[377277318,1754315649256,500.0,0.00030207,120]
[377277319,1754315659409,281.95291547,0.00029103,2]
[377277320,1754315666160,800.0,0.00033,120]
[377277323,1754315672626,164.983962,0.00013699,2]
[377277324,1754315672897,164.983962,0.00024907,2]
[377277325,1754315681659,2335.56647027,0.00033,31]
[377277326,1754315694347,420.23015566,0.0003001,2]
[377277327,1754315723158,-177.92359727,0.00030671,2]
[377277328,1754315726169,-74.39755728,0.00030671,2]
[377277329,1754315726404,-117.30387109,0.00030776,2]
[377277330,1754315728417,-112.61296676,0.00030776,2]
[377277331,1754315728440,-58.67821191,0.00031007,2]
[377277332,1754315730539,-120.41984409,0.00031007,2]
[377277333,1754315730566,-51.783195,0.00031142,3]
[377277334,1754315732399,-222.15660986,0.00031142,3]
[377277335,1754315733800,-300.0,0.00031142,3]
[377277336,1754315739868,-168.43393704,0.00031142,3]
[377277337,1754315742106,-264.42106908,0.00031142,3]
[377277338,1754315744359,-193.20518902,0.00031142,3]
[377277340,1754315821892,-227.79696091,0.00032,5]
[377277341,1754315824158,-269.45442891,0.00032,5]
[377277342,1754315906389,5332.56,0.00032876,120]
[377277343,1754315924196,-367.0830784,0.00030776,2]
[377277344,1754315945499,1000.0,0.00033,30]
[377277345,1754315949965,241.0,0.00030214,120]
[377277346,1754315960295,241.0,0.00030214,120]
[377277347,1754315963326,720.0,0.0003001,7]
[377277348,1754315963801,156.256545,0.00025246,2]
[377277349,1754315983351,241.0,0.00030211,120]
[377277350,1754315995549,460.7404663,0.0003001,7]
[377277352,1754316024331,241.0,0.00033,30]
[377277353,1754316028286,216.0,0.00032746,120]
[377277354,1754316028737,216.0,0.00032736,120]
[377277355,1754316029931,216.0,0.00032726,120]
[377277356,1754316055676,262.0,0.00030211,30]
[377277357,1754316098439,-174.882,0.00030776,2]
[377277358,1754316099280,187.04,0.000273,120]
[377277359,1754316100507,-164.70141543,0.00030776,2]
[377277360,1754316100531,-111.00155712,0.00031007,2]
[377277361,1754316128197,-192.49646886,0.00031007,2]
[377277362,1754316151103,-258.49262457,0.00031007,2]
[377277363,1754316155028,-230.30432666,0.00031007,2]
[377277364,1754316156588,5110.37,0.00032876,120]
[377277382,1754316265663,172.40055035,0.0002944,2]
[377277383,1754316312178,386.0,0.0003001,7]
[377277384,1754316329071,-279.45236831,0.00030776,2]
[377277385,1754316330938,-191.65862758,0.00030776,2]
[377277386,1754316330968,-23.67610742,0.00030987,2]
[377277388,1754316356186,-181.62222343,0.00030987,2]
[377277389,1754316363168,380.0,0.00029988,2]
[377277391,1754316397614,4897.44,0.00032876,120]
[377277392,1754316533265,198.1,0.0003001,2]
[377277395,1754316607273,164.983962,0.00013699,2]
[377277396,1754316607529,164.983962,0.00027397,2]
[377277399,1754316618797,4693.38,0.00032876,120]
[377277412,1754316632890,-347.75271999,0.00030776,2]
[377277413,1754316632914,-161.51594861,0.00030786,2]
[377277414,1754316632948,-637.2313314,0.00030886,2]
[377277415,1754316632978,-309.16900749,0.00030886,2]
[377277416,1754316633000,-298.885519,0.00030889,2]
[377277417,1754316633024,-169.0,0.00030899,2]
[377277418,1754316633046,-3590.54816535,0.000309,23]
[377277419,1754316633073,-255.33453679,0.000309,23]
[377277421,1754316633098,-99.19584285,0.000309,23]
[377277422,1754316633109,-4173.85522263,0.00030936,2]
[377277423,1754316633120,-680.97,0.00030979,10]
[377277424,1754316633130,-472.89,0.00030979,10]
[377277425,1754316633141,-400.0,0.00030985,2]
[377277426,1754316633152,-400.0,0.00030985,2]
[377277427,1754316633163,-500.0,0.00030986,2]
[377277428,1754316633174,-368.76605092,0.00030986,2]
[377277429,1754316633189,-500.0,0.00030986,2]
[377277430,1754316633200,-500.0,0.00030986,2]
[377277431,1754316633211,-500.0,0.00030986,2]
[377277432,1754316633221,-500.0,0.00030986,2]
[377277433,1754316633231,-500.0,0.00030986,2]
[377277434,1754316633241,-500.0,0.00030986,2]
[377277435,1754316633252,-500.0,0.00030986,2]
[377277436,1754316633262,-500.0,0.00030986,2]
[377277437,1754316633274,-500.0,0.00030986,2]
[377277438,1754316633284,-500.0,0.00030986,2]
[377277439,1754316633294,-500.0,0.00030986,2]
[377277440,1754316633304,-500.0,0.00030986,2]
[377277441,1754316633315,-500.0,0.00030986,2]
[377277442,1754316633325,-500.0,0.00030986,2]
[377277443,1754316633335,-500.0,0.00030986,2]
[377277444,1754316633344,-500.0,0.00030986,2]
[377277445,1754316633355,-500.0,0.00030986,2]
[377277446,1754316633365,-500.0,0.00030986,2]
[377277447,1754316633376,-500.0,0.00030986,2]
[377277448,1754316633386,-512.89993009,0.00030986,2]
[377277449,1754316633395,-500.0,0.00030986,2]
[377277450,1754316633405,-500.0,0.00030986,2]
[377277451,1754316633415,-500.0,0.00030986,2]
[377277452,1754316633425,-500.0,0.00030986,2]
[377277453,1754316633434,-500.0,0.00030986,2]
[377277455,1754316633444,-500.0,0.00030986,2]
[377277457,1754316633454,-500.0,0.00030986,2]
[377277459,1754316633464,-5848.43204941,0.00030986,2]
[377277461,1754316633474,-1189.0,0.00030987,2]
[377277462,1754316633484,-500.0,0.00030988,2]
[377277464,1754316633494,-600.87251652,0.00030988,2]
[377277466,1754316633503,-1216.98,0.00030989,2]
[377277467,1754316633514,-1216.98,0.00030989,2]
[377277469,1754316633525,-1216.98,0.00030989,2]
[377277471,1754316633535,-1216.98,0.00030989,2]
[377277472,1754316633544,-1216.98,0.00030989,2]
[377277473,1754316633554,-1216.98,0.00030989,2]
[377277474,1754316633564,-1216.98,0.00030989,2]
[377277476,1754316633574,-1216.98,0.00030989,2]
[377277478,1754316633584,-1216.98,0.00030989,2]
[377277481,1754316633593,-1216.98,0.00030989,2]
[377277483,1754316633604,-1216.98,0.00030989,2]
[377277486,1754316633614,-1216.98,0.00030989,2]
[377277487,1754316633623,-1216.98,0.00030989,2]
[377277490,1754316633633,-1216.98,0.00030989,2]
[377277492,1754316633649,-1216.98,0.00030989,2]
[377277494,1754316633669,-1216.98,0.00030989,2]
[377277496,1754316633691,-1216.98,0.00030989,2]
[377277498,1754316633713,-1216.98,0.00030989,2]
[377277500,1754316633735,-1216.98,0.00030989,2]
[377277502,1754316633758,-1216.98,0.00030989,2]
[377277504,1754316633782,-1216.98,0.00030989,2]
[377277506,1754316633806,-1216.98,0.00030989,2]
[377277508,1754316633829,-1216.98,0.00030989,2]
[377277510,1754316633851,-1217.03998087,0.00030989,2]
[377277512,1754316633876,-567.47,0.0003099,10]
[377277514,1754316633898,-500.0,0.00031,5]
[377277516,1754316633921,-500.0,0.00031,5]
[377277518,1754316633945,-500.0,0.00031,5]
[377277520,1754316633968,-372.83764077,0.00031,5]
[377277522,1754316633990,-1354.97311165,0.00031007,2]
[377277524,1754316634012,-510.72260156,0.00031043,3]
[377277526,1754316634035,-500.0,0.00031075,5]
[377277528,1754316634057,-500.0,0.00031075,5]
[377277530,1754316634079,-185.0,0.00031155,6]
[377277532,1754316634090,-317.57593189,0.00031182,2]
[377277534,1754316634100,-33539.91932631,0.000312,2]
[377277536,1754316634113,-722.98,0.000312,2]
[377277970,1754316639129,-32050.79744779,0.000312,2]
[377277971,1754316639139,-3945.07854477,0.0003121,24]
[377277972,1754316639148,-507.46658181,0.00031262,2]
[377277973,1754316639157,-398.201499,0.00031264,2]
[377277974,1754316639167,-298.88551897,0.00031335,2]
[377277975,1754316639176,-3945.07854477,0.00031521,25]
[377277976,1754316639186,-500.0,0.00031548,5]
[377277977,1754316639196,-500.0,0.00031623,5]
[377277978,1754316639206,-1000.0,0.00031623,5]
[377277979,1754316639215,-298.88551897,0.00031781,2]
[377277980,1754316639225,-3945.07854477,0.00031831,25]
[377277981,1754316639234,-2.74861018,0.00032,5]
[377277982,1754316639244,-3945.07854477,0.00032141,26]
[377277983,1754316639254,-298.88551897,0.00032227,2]
[377277984,1754316639263,-3945.07854477,0.00032452,26]
[377277985,1754316639273,-352.0,0.00032492,2]
[377277986,1754316639284,-153.0,0.00032576,2]
[377277987,1754316639294,-153.0,0.00032576,2]
[377277988,1754316639304,-153.0,0.00032576,2]
[377277989,1754316639314,-160.0,0.00032648,2]
[377277990,1754316639324,-12399.80475645,0.00032666,2]
[377277991,1754316639334,-298.88551897,0.00032673,2]
[377277992,1754316639344,-394.08,0.00032726,10]
[377277993,1754316639353,-66313.6967741,0.00032735,2]
[377277994,1754316639363,-579.48,0.00032736,3]
[377277995,1754316639372,-783.87,0.00032746,3]
[377277996,1754316639382,-151.0,0.00032746,2]
[377277997,1754316639391,-151.0,0.00032746,2]
[377277998,1754316639401,-151.0,0.00032746,2]
[377277999,1754316639411,-151.0,0.00032746,2]
[377278000,1754316639420,-151.0,0.00032746,2]
[377278001,1754316639429,-151.0,0.00032746,2]
[377278002,1754316639439,-151.0,0.00032746,2]
[377278003,1754316639448,-151.0,0.00032746,2]
[377278004,1754316639457,-270.97846256,0.00032746,2]
[377278005,1754316639467,-198941.090322,0.00032756,2]
[377278006,1754316639476,-3945.07854477,0.00032762,27]
[377278007,1754316639486,-555.0,0.00032763,6]
[377278008,1754316639496,-185.0,0.00032763,6]
[377278009,1754316639505,-370000.0,0.00032766,2]
[377278010,1754316639515,-293.01237011,0.00032773,5]
[377278011,1754316639524,-546.69555972,0.00032773,5]
[377278012,1754316639536,-500.0,0.00032773,5]
[377278013,1754316639546,-229.95386317,0.00032773,5]
[377278014,1754316639555,-240.49553704,0.00032773,5]
[377278015,1754316639564,-383.05747136,0.00032873,5]
[377278016,1754316639574,-500.0,0.00032873,5]
[377278017,1754316639584,-500.0,0.00032873,5]
[377278018,1754316639594,-500.0,0.00032873,2]
[377278019,1754316639603,-503.10354664,0.00032873,5]
[377278020,1754316639613,-500.0,0.00032873,5]
[377278021,1754316639623,-500.0,0.00032873,5]
[377278022,1754316639632,-275.49980112,0.00032873,5]
[377278023,1754316639642,-500.0,0.00032873,5]
[377278024,1754316639651,-500.0,0.00032873,5]
[377278025,1754316639662,-500.0,0.00032873,5]
[377278026,1754316639671,-500.0,0.00032873,5]